bitfinex-derivatives/quotes_BNBF0:USTF0_20250603
["timestamp","ask_amount","ask_price","bid_price","bid_amount"]
[1748990227908,3.77658262,662.62,661.09,0.30253066]
[1748990228205,0.30183667,662.61,661.09,0.30253066]
[1748990231206,1.0072399,662.6,661.09,0.30253066]
[1748990231408,1.13255786,661.48,661.09,0.30253066]
[1748990231607,1.0072399,661.47,661.09,0.30253066]
[1748990231909,1.0072399,661.46,661.09,0.30253066]
[1748990232108,1.0072399,661.45,661.09,0.30253066]
[1748990232307,1.0072399,661.44,661.09,0.30253066]
[1748990232509,1.0072399,661.43,661.09,0.30253066]
[1748990232712,1.13255786,661.34,661.09,0.30253066]
[1748990232915,1.0072399,661.33,661.09,0.30253066]
[1748990233112,1.0072399,661.32,661.09,0.30253066]
[1748990233313,1.0072399,661.31,661.09,0.30253066]
[1748990233505,1.00927681,661.3,661.09,0.30253066]
[1748990233710,1.00927681,661.29,661.09,0.30253066]
[1748990233907,1.00927681,661.28,661.09,0.30253066]
[1748990234112,1.00927681,661.27,661.09,0.30253066]
[1748990234305,1.00927681,661.26,661.09,0.30253066]
[1748990234512,1.00927681,661.25,661.09,0.30253066]
[1748990234810,1.00927681,661.24,661.09,0.30253066]
[1748990235011,1.00927681,661.23,661.09,0.30253066]
[1748990235312,1.00927681,661.22,661.09,0.30253066]
[1748990235512,1.00927681,661.21,661.09,0.30253066]
[1748990235711,1.00927681,661.2,661.09,0.30253066]
[1748990235911,1.00927681,661.19,661.09,0.30253066]
[1748990236111,1.00927681,661.18,661.09,0.30253066]
[1748990236310,1.00927681,661.17,661.09,0.30253066]
[1748990236511,1.00927681,661.16,661.09,0.30253066]
[1748990236708,1.00927681,661.15,661.09,0.30253066]
[1748990237012,1.00927681,661.14,661.09,0.30253066]
[1748990237212,1.00927681,661.13,661.09,0.30253066]
[1748990237515,1.00900281,661.12,661.09,0.30253066]
[1748990237812,1.00900281,661.11,661.09,0.30253066]
[1748990238013,1.00900281,661.1,661.09,0.30253066]
[1748990241508,1.00895683,661.1,661.09,0.30253066]
[1748990245419,1.0089459,661.1,661.09,0.30253066]
[1748990249516,1.00890972,661.1,661.09,0.30253066]
[1748990250316,2.26511572,661.54,661.09,0.30253066]
[1748990250517,1.13219706,661.28,661.09,0.30253066]
[1748990250717,1.00886056,661.27,661.09,0.30253066]
[1748990251023,1.00886056,661.26,661.09,0.30253066]
[1748990251321,1.00886056,661.25,661.09,0.30253066]
[1748990251522,1.00886056,661.24,661.09,0.30253066]
[1748990251723,1.00886056,661.23,661.09,0.30253066]
[1748990251923,1.00886056,661.22,661.09,0.30253066]
[1748990252223,1.00886056,661.21,661.09,0.30253066]
[1748990252425,1.00886056,661.2,661.09,0.30253066]
[1748990252621,1.00886056,661.19,661.09,0.30253066]
[1748990252823,1.00886056,661.18,661.09,0.30253066]
[1748990253022,1.00886056,661.17,661.09,0.30253066]
[1748990253222,1.50959609,661.38,661.09,0.30253066]
[1748990253425,1.13197703,661.25,661.09,0.30253066]
[1748990253626,1.00876735,661.24,661.09,0.30253066]
[1748990253825,1.00876735,661.23,661.09,0.30253066]
[1748990254023,1.00876735,661.22,661.09,0.30253066]
[1748990254221,1.00876735,661.21,661.09,0.30253066]
[1748990254528,1.00876735,661.2,661.09,0.30253066]
[1748990254729,1.00876735,661.19,661.09,0.30253066]
[1748990254920,1.00876735,661.18,661.09,0.30253066]
[1748990255121,1.00876735,661.17,661.09,0.30253066]
[1748990255321,1.00876735,661.16,661.09,0.30253066]
[1748990255523,1.13197703,661.24,661.09,0.30253066]
[1748990255524,1.00876735,661.15,661.09,0.30253066]
[1748990255724,1.00876735,661.14,661.09,0.30253066]
[1748990255921,1.00876735,661.13,661.09,0.30253066]
[1748990256127,1.00876735,661.12,661.09,0.30253066]
[1748990256321,1.00876735,661.11,661.09,0.30253066]
[1748990256627,1.00876735,661.1,661.09,0.30253066]
[1748990257123,1.00683007,661.1,661.09,0.30253066]
[1748990261128,1.0074243,661.1,661.09,0.30253066]
[1748990265030,1.50959609,661.41,661.09,0.30253066]
[1748990265230,1.13100152,661.28,661.09,0.30253066]
[1748990265430,1.00715711,661.27,661.09,0.30253066]
[1748990265633,1.00715711,661.26,661.09,0.30253066]
[1748990265830,1.00715711,661.25,661.09,0.30253066]
[1748990266028,1.00715711,661.24,661.09,0.30253066]
[1748990266230,1.00715711,661.23,661.09,0.30253066]
[1748990266429,1.00715711,661.22,661.09,0.30253066]
[1748990266628,1.13100152,661.28,661.09,0.30253066]
[1748990266629,1.00715711,661.21,661.09,0.30253066]
[1748990266934,1.00715711,661.2,661.09,0.30253066]
[1748990267236,1.00715711,661.19,661.09,0.30253066]
[1748990267430,1.00715711,661.18,661.09,0.30253066]
[1748990267629,1.00715711,661.17,661.09,0.30253066]
[1748990267831,1.00715711,661.16,661.09,0.30253066]
[1748990268038,1.00715711,661.15,661.09,0.30253066]
[1748990268240,1.00715711,661.14,661.09,0.30253066]
[1748990268537,1.00715711,661.13,661.09,0.30253066]
[1748990268741,1.00715711,661.12,661.09,0.30253066]
[1748990269039,1.00695597,661.11,661.09,0.30253066]
[1748990269230,1.00695597,661.1,661.09,0.30253066]
[1748990273038,1.00675191,661.1,661.09,0.30253066]
[1748990277141,1.00667615,661.1,661.09,0.30253066]
[1748990280651,1.50959609,661.36,661.09,0.30253066]
[1748990280850,1.13068473,661.25,661.09,0.30253066]
[1748990281049,1.006676,661.24,661.09,0.30253066]
[1748990281250,1.006676,661.23,661.09,0.30253066]
[1748990281549,1.006676,661.22,661.09,0.30253066]
[1748990281749,1.006676,661.21,661.09,0.30253066]
[1748990281951,1.006676,661.2,661.09,0.30253066]
[1748990282250,1.006676,661.19,661.09,0.30253066]
[1748990282451,1.006676,661.18,661.09,0.30253066]
[1748990282752,1.006676,661.17,661.09,0.30253066]
[1748990282952,1.006676,661.16,661.09,0.30253066]
[1748990283153,1.006676,661.15,661.09,0.30253066]
[1748990283348,1.006676,661.14,661.09,0.30253066]
[1748990283551,1.00760926,661.13,661.09,0.30253066]
[1748990283753,1.00760926,661.12,661.09,0.30253066]
[1748990283954,1.00760926,661.11,661.09,0.30253066]
[1748990284155,1.00760926,661.1,661.09,0.30253066]
[1748990287254,1.00693086,661.1,661.09,0.30253066]
[1748990287454,1.006947,661.1,661.09,0.30253066]
[1748990291359,1.00699356,661.1,661.09,0.30253066]
[1748990295465,1.00891224,661.1,661.09,0.30253066]
[1748990299471,1.00914328,661.1,661.09,0.30253066]
[1748990303377,1.50959609,661.35,661.09,0.30253066]
[1748990303573,1.1321891,661.23,661.09,0.30253066]
[1748990303774,1.00955658,661.22,661.09,0.30253066]
[1748990303974,1.00955658,661.21,661.09,0.30253066]
[1748990304172,1.00955658,661.2,661.09,0.30253066]
[1748990304373,1.00955658,661.19,661.09,0.30253066]
[1748990304572,1.00955658,661.18,661.09,0.30253066]
[1748990304775,1.00955658,661.17,661.09,0.30253066]
[1748990304972,1.00955658,661.16,661.09,0.30253066]
[1748990305179,1.00955658,661.15,661.09,0.30253066]
[1748990305476,1.00955658,661.14,661.09,0.30253066]
[1748990305679,1.00955658,661.13,661.09,0.30253066]
[1748990305978,1.00955658,661.12,661.09,0.30253066]
[1748990306171,1.00955658,661.11,661.09,0.30253066]
[1748990306376,1.00955658,661.1,661.09,0.30253066]
[1748990307476,1.00949298,661.1,661.09,0.30253066]
[1748990311380,1.0109128,661.1,661.09,0.30253066]
[1748990314381,1.13214486,661.39,661.09,0.30253066]
[1748990314583,1.01217722,661.38,661.09,0.30253066]
[1748990314882,1.01217722,661.37,661.09,0.30253066]
[1748990315084,1.01217722,661.36,661.09,0.30253066]
[1748990315376,1.01217007,661.35,661.09,0.30253066]
[1748990315581,1.01217007,661.34,661.09,0.30253066]
[1748990315776,1.01217007,661.33,661.09,0.30253066]
[1748990315975,1.01217007,661.32,661.09,0.30253066]
[1748990316181,1.01217007,661.31,661.09,0.30253066]
[1748990316481,1.01217007,661.3,661.09,0.30253066]
[1748990316681,1.01217007,661.29,661.09,0.30253066]
[1748990316875,1.13169631,661.39,661.09,0.30253066]
[1748990316876,1.01217007,661.28,661.09,0.30253066]
[1748990317078,1.13169631,661.39,661.09,0.30253066]
[1748990317079,1.01217007,661.27,661.09,0.30253066]
[1748990317279,1.01217007,661.26,661.09,0.30253066]
[1748990317476,1.01217007,661.25,661.09,0.30253066]
[1748990317679,1.01217007,661.24,661.09,0.30253066]
[1748990317878,1.01217007,661.23,661.09,0.30253066]
[1748990318080,1.01217007,661.22,661.09,0.30253066]
[1748990318277,1.01217007,661.21,661.09,0.30253066]
[1748990318477,1.01217007,661.2,661.09,0.30253066]
[1748990318683,1.01217007,661.19,661.09,0.30253066]
[1748990318982,1.01217007,661.18,661.09,0.30253066]
[1748990319184,1.01217007,661.17,661.09,0.30253066]
[1748990319383,1.01285933,661.16,661.09,0.30253066]
[1748990319580,1.01285933,661.15,661.09,0.30253066]
[1748990319885,1.01285933,661.14,661.09,0.30253066]
[1748990320084,1.13129322,661.34,661.09,0.30253066]
[1748990320283,1.01279067,661.33,661.09,0.30253066]
[1748990320478,1.01279067,661.32,661.09,0.30253066]
[1748990320682,1.13129322,661.34,661.09,0.30253066]
[1748990320683,1.01279067,661.31,661.09,0.30253066]
[1748990320982,1.01279067,661.3,661.09,0.30253066]
[1748990321175,1.01279067,661.29,661.09,0.30253066]
[1748990321380,1.01279067,661.28,661.09,0.30253066]
[1748990321584,1.01279067,661.27,661.09,0.30253066]
[1748990321786,1.01279067,661.26,661.09,0.30253066]
[1748990321986,1.01279067,661.25,661.09,0.30253066]
[1748990322187,1.01279067,661.24,661.09,0.30253066]
[1748990322486,1.01279067,661.23,661.09,0.30253066]
[1748990322686,1.01279067,661.22,661.09,0.30253066]
[1748990322985,1.01279067,661.21,661.09,0.30253066]
[1748990323179,1.50959609,661.47,661.09,0.30253066]
[1748990323180,1.01260218,661.2,661.09,0.30253066]
[1748990323383,1.01260218,661.19,661.09,0.30253066]
[1748990323585,1.01260218,661.18,661.09,0.30253066]
[1748990323785,1.01260218,661.17,661.09,0.30253066]
[1748990323983,1.01260218,661.16,661.09,0.30253066]
[1748990324181,1.01260218,661.15,661.09,0.30253066]
[1748990324381,1.01260218,661.14,661.09,0.30253066]
[1748990324585,1.01260218,661.13,661.09,0.30253066]
[1748990324785,1.13104433,661.34,661.09,0.30253066]
[1748990324985,1.0128974,661.33,661.09,0.30253066]
[1748990325290,1.13104433,661.34,661.09,0.30253066]
[1748990325291,1.0128974,661.32,661.09,0.30253066]
[1748990325485,1.0128974,661.31,661.09,0.30253066]
[1748990325691,1.0128974,661.3,661.09,0.30253066]
[1748990325891,1.0128974,661.29,661.09,0.30253066]
[1748990326088,1.0128974,661.28,661.09,0.30253066]
[1748990326287,1.0128974,661.27,661.09,0.30253066]
[1748990326487,1.0128974,661.26,661.09,0.30253066]
[1748990326687,1.0128974,661.25,661.09,0.30253066]
[1748990326891,1.0128974,661.24,661.09,0.30253066]
[1748990327088,1.0128974,661.23,661.09,0.30253066]
[1748990327291,1.0128974,661.22,661.09,0.30253066]
[1748990327492,1.0128974,661.21,661.09,0.30253066]
[1748990327793,1.0128974,661.2,661.09,0.30253066]
[1748990327992,1.0128974,661.19,661.09,0.30253066]
[1748990328194,1.0128974,661.18,661.09,0.30253066]
[1748990328396,1.0128974,661.17,661.09,0.30253066]
[1748990328595,1.13104433,661.34,661.09,0.30253066]
[1748990328596,1.0128974,661.16,661.09,0.30253066]
[1748990328796,1.0128974,661.15,661.09,0.30253066]
[1748990328996,1.13104433,661.34,661.09,0.30253066]
[1748990328997,1.0128974,661.14,661.09,0.30253066]
[1748990329197,1.0128974,661.13,661.09,0.30253066]
[1748990329400,1.13104433,661.34,661.09,0.30253066]
[1748990329700,1.012886,661.33,661.09,0.30253066]
[1748990329897,1.012886,661.32,661.09,0.30253066]
[1748990330093,1.012886,661.31,661.09,0.30253066]
[1748990330296,1.012886,661.3,661.09,0.30253066]
[1748990330498,1.012886,661.29,661.09,0.30253066]
[1748990330698,1.012886,661.28,661.09,0.30253066]
[1748990330899,1.012886,661.27,661.09,0.30253066]
[1748990331097,1.01289621,661.26,661.09,0.30253066]
[1748990331300,1.01289621,661.25,661.09,0.30253066]
[1748990331501,1.01289621,661.24,661.09,0.30253066]
[1748990331708,1.01289621,661.23,661.09,0.30253066]
[1748990331899,1.01289621,661.22,661.09,0.30253066]
[1748990332099,1.01289621,661.21,661.09,0.30253066]
[1748990332296,1.01289621,661.2,661.09,0.30253066]
[1748990332502,1.01289621,661.19,661.09,0.30253066]
[1748990332696,1.01289621,661.18,661.09,0.30253066]
[1748990332899,1.01289621,661.17,661.09,0.30253066]
[1748990333100,1.01289621,661.16,661.09,0.30253066]
[1748990333301,1.01289621,661.15,661.09,0.30253066]
[1748990333504,1.01289621,661.14,661.09,0.30253066]
[1748990333803,1.01289621,661.13,661.09,0.30253066]
[1748990334004,1.13089156,661.35,661.09,0.30253066]
[1748990334198,1.01270586,661.34,661.09,0.30253066]
[1748990334399,1.01270586,661.33,661.09,0.30253066]
[1748990334606,1.01270586,661.32,661.09,0.30253066]
[1748990334808,1.01270586,661.31,661.09,0.30253066]
[1748990335003,1.01270691,661.3,661.09,0.30253066]
[1748990335207,1.01270691,661.29,661.09,0.30253066]
[1748990335507,1.01270691,661.28,661.09,0.30253066]
[1748990335804,1.01270691,661.27,661.09,0.30253066]
[1748990336007,1.01270691,661.26,661.09,0.30253066]
[1748990336206,1.01270691,661.25,661.09,0.30253066]
[1748990336408,1.01270691,661.24,661.09,0.30253066]
[1748990336608,1.01270691,661.23,661.09,0.30253066]
[1748990336809,1.01270691,661.22,661.09,0.30253066]
[1748990337006,1.01270691,661.21,661.09,0.30253066]
[1748990337311,1.01270691,661.2,661.09,0.30253066]
[1748990337511,1.01270691,661.19,661.09,0.30253066]
[1748990337713,1.01270691,661.18,661.09,0.30253066]
[1748990337913,1.01270691,661.17,661.09,0.30253066]
[1748990338212,1.01270691,661.16,661.09,0.30253066]
[1748990338414,1.01270691,661.15,661.09,0.30253066]
[1748990338713,1.01270691,661.14,661.09,0.30253066]
[1748990338907,1.01270691,661.13,661.09,0.30253066]
[1748990339111,1.13091455,661.36,661.09,0.30253066]
[1748990339310,1.0128099,661.35,661.09,0.30253066]
[1748990339508,1.0128099,661.34,661.09,0.30253066]
[1748990339712,1.0128099,661.33,661.09,0.30253066]
[1748990339912,1.0128099,661.32,661.09,0.30253066]
[1748990340113,1.0128099,661.31,661.09,0.30253066]
[1748990340307,1.13091455,661.36,661.09,0.30253066]
[1748990340308,1.0128099,661.3,661.09,0.30253066]
[1748990340514,1.0128099,661.29,661.09,0.30253066]
[1748990340714,1.0128099,661.28,661.09,0.30253066]
[1748990340908,1.0128099,661.27,661.09,0.30253066]
[1748990341107,1.0128099,661.26,661.09,0.30253066]
[1748990341414,1.0128099,661.25,661.09,0.30253066]
[1748990341614,1.01412897,661.24,661.09,0.30253066]
[1748990341814,1.01412897,661.23,661.09,0.30253066]
[1748990342113,3.77519287,662.17,661.09,0.30253066]
[1748990342114,1.01412897,661.22,661.09,0.30253066]
[1748990342320,1.01412897,661.21,661.09,0.30253066]
[1748990342515,1.01412897,661.2,661.09,0.30253066]
[1748990342713,1.01412897,661.19,661.09,0.30253066]
[1748990342915,1.01412897,661.18,661.09,0.30253066]
[1748990343116,1.01412897,661.17,661.09,0.30253066]
[1748990343315,1.01412897,661.16,661.09,0.30253066]
[1748990343516,1.01412897,661.15,661.09,0.30253066]
[1748990343715,1.01412897,661.14,661.09,0.30253066]
[1748990343915,1.01412897,661.13,661.09,0.30253066]
[1748990344216,1.01412897,661.12,661.09,0.30253066]
[1748990344417,1.01412897,661.11,661.09,0.30253066]
[1748990344614,1.01412897,661.1,661.09,0.30253066]
[1748990345315,1.01497017,661.1,661.09,0.30253066]
[1748990349123,1.01347748,661.1,661.09,0.30253066]
[1748990351421,1.50959609,661.4,661.09,0.30253066]
[1748990351626,1.13107424,661.27,661.09,0.30253066]
[1748990351823,2.14446651,661.26,661.09,0.30253066]
[1748990352027,1.01339227,661.25,661.09,0.30253066]
[1748990352226,1.01339227,661.24,661.09,0.30253066]
[1748990352427,1.01339227,661.23,661.09,0.30253066]
[1748990352629,1.01339227,661.22,661.09,0.30253066]
[1748990352927,1.01270288,661.21,661.09,0.30253066]
[1748990353127,1.01270288,661.2,661.09,0.30253066]
[1748990353428,1.01270288,661.19,661.09,0.30253066]
[1748990353726,1.01270288,661.18,661.09,0.30253066]
[1748990353929,1.01270288,661.17,661.09,0.30253066]
[1748990354228,1.01270288,661.16,661.09,0.30253066]
[1748990354428,1.01270288,661.15,661.09,0.30253066]
[1748990354629,1.01270288,661.14,661.09,0.30253066]
[1748990354927,1.01270288,661.13,661.09,0.30253066]
[1748990355124,1.01270288,661.12,661.09,0.30253066]
[1748990355324,1.01270288,661.11,661.09,0.30253066]
[1748990355524,1.01270288,661.1,661.09,0.30253066]
[1748990356823,1.01218342,661.1,661.09,0.30253066]
[1748990364828,1.00932872,661.1,661.09,0.30253066]
[1748990369039,1.0118593,661.1,661.09,0.30253066]
[1748990371937,1.01181671,661.1,661.09,0.30253066]
[1748990372743,1.01188673,661.1,661.09,0.30253066]
[1748990377849,3.77519287,662.03,661.09,0.30253066]
[1748990378943,1.13063893,661.26,661.09,0.30253066]
[1748990379146,1.01229611,661.25,661.09,0.30253066]
[1748990379349,1.01229611,661.24,661.09,0.30253066]
[1748990379550,1.01229611,661.23,661.09,0.30253066]
[1748990379848,3.76879643,662.04,661.09,0.30253066]
[1748990380050,0.30198251,662.29,661.09,0.30253066]
[1748990380549,1.01234931,662.28,661.09,0.30253066]
[1748990380747,1.1307031,661.24,661.09,0.30253066]
[1748990380951,1.01234931,661.23,661.09,0.30253066]
[1748990381150,1.01237163,661.22,661.09,0.30253066]
[1748990381345,1.01237163,661.21,661.09,0.30253066]
[1748990381551,1.01237163,661.2,661.09,0.30253066]
[1748990381752,1.01237163,661.19,661.09,0.30253066]
[1748990381952,1.01237163,661.18,661.09,0.30253066]
[1748990382160,1.01237163,661.17,661.09,0.30253066]
[1748990382453,1.01237163,661.16,661.09,0.30253066]
[1748990382655,1.01237163,661.15,661.09,0.30253066]
[1748990382851,1.01237163,661.14,661.09,0.30253066]
[1748990383051,1.01237163,661.13,661.09,0.30253066]
[1748990383251,1.01237163,661.12,661.09,0.30253066]
[1748990383450,1.01237163,661.11,661.09,0.30253066]
[1748990383755,1.01237163,661.1,661.09,0.30253066]
[1748990384957,1.01258746,661.1,661.09,0.30253066]
[1748990389059,1.01141002,661.1,661.09,0.30253066]
[1748990392865,1.01161356,661.1,661.09,0.30253066]
[1748990396767,1.50760413,661.34,661.09,0.30253066]
[1748990396969,1.13164322,661.23,661.09,0.30253066]
[1748990397162,1.01187672,661.22,661.09,0.30253066]
[1748990397366,1.01187672,661.21,661.09,0.30253066]
[1748990397566,1.01187672,661.2,661.09,0.30253066]
[1748990397768,1.01187672,661.19,661.09,0.30253066]
[1748990397961,1.01187672,661.18,661.09,0.30253066]
[1748990398166,1.01187672,661.17,661.09,0.30253066]
[1748990398363,1.01187672,661.16,661.09,0.30253066]
[1748990398568,1.01187672,661.15,661.09,0.30253066]
[1748990398767,1.13164322,661.22,661.09,0.30253066]
[1748990398768,1.01187672,661.14,661.09,0.30253066]
[1748990398968,1.01187672,661.13,661.09,0.30253066]
[1748990399269,1.01187672,661.12,661.09,0.30253066]
[1748990399469,1.01187672,661.11,661.09,0.30253066]
[1748990399662,1.01187672,661.1,661.09,0.30253066]
[1748990400569,1.50760413,661.33,661.09,0.30253066]
[1748990400768,1.13200799,661.22,661.09,0.30253066]
[1748990400969,1.01307216,661.21,661.09,0.30253066]
[1748990401265,1.01307216,661.2,661.09,0.30253066]
[1748990401464,1.01307216,661.19,661.09,0.30253066]
[1748990401666,1.01307216,661.18,661.09,0.30253066]
[1748990401864,1.01307216,661.17,661.09,0.30253066]
[1748990402061,1.01307216,661.16,661.09,0.30253066]
[1748990402270,1.01307216,661.15,661.09,0.30253066]
[1748990402467,1.01307216,661.14,661.09,0.30253066]
[1748990402664,1.01307216,661.13,661.09,0.30253066]
[1748990402863,1.01307216,661.12,661.09,0.30253066]
[1748990403068,1.01307216,661.11,661.09,0.30253066]
[1748990403267,1.01307216,661.1,661.09,0.30253066]
[1748990403466,1.01337845,661.1,661.09,0.30253066]
[1748990407375,1.50760413,661.33,661.09,0.30253066]
[1748990407577,1.13261165,661.21,661.09,0.30253066]
[1748990407771,1.01359391,661.2,661.09,0.30253066]
[1748990407981,1.01359391,661.19,661.09,0.30253066]
[1748990408272,1.01359391,661.18,661.09,0.30253066]
[1748990408477,1.01359391,661.17,661.09,0.30253066]
[1748990408672,1.01359391,661.16,661.09,0.30253066]
[1748990408871,1.01359391,661.15,661.09,0.30253066]
[1748990409079,1.01359391,661.14,661.09,0.30253066]
[1748990409380,1.01359391,661.13,661.09,0.30253066]
[1748990409573,1.01359391,661.12,661.09,0.30253066]
[1748990409777,1.01359391,661.11,661.09,0.30253066]
[1748990409974,1.01359391,661.1,661.09,0.30253066]
[1748990411383,1.01361659,661.1,661.09,0.30253066]
[1748990411783,1.01361472,661.1,661.09,0.30253066]
[1748990415278,1.01359656,661.1,661.09,0.30253066]
[1748990419291,1.01472022,661.1,661.09,0.30253066]
[1748990422592,3.76901034,662.57,661.09,0.30253066]
[1748990422792,1.13174337,661.41,661.09,0.30253066]
[1748990422996,1.01536101,661.4,661.09,0.30253066]
[1748990423196,1.01533906,661.39,661.09,0.30253066]
[1748990423393,1.01533906,661.38,661.09,0.30253066]
[1748990423689,1.01533906,661.37,661.09,0.30253066]
[1748990423890,1.01533906,661.36,661.09,0.30253066]
[1748990424088,1.01533906,661.35,661.09,0.30253066]
[1748990424294,1.01533906,661.34,661.09,0.30253066]
[1748990424491,1.01533906,661.33,661.09,0.30253066]
[1748990424690,1.01533906,661.32,661.09,0.30253066]
[1748990424889,1.01533906,661.31,661.09,0.30253066]
[1748990425093,1.01533906,661.3,661.09,0.30253066]
[1748990425291,1.01533906,661.29,661.09,0.30253066]
[1748990425491,1.01533906,661.28,661.09,0.30253066]
[1748990425691,1.01533906,661.27,661.09,0.30253066]
[1748990425893,1.01533906,661.26,661.09,0.30253066]
[1748990426093,1.01533906,661.25,661.09,0.30253066]
[1748990426299,1.01533906,661.24,661.09,0.30253066]
[1748990426497,1.01533906,661.23,661.09,0.30253066]
[1748990426698,1.01533906,661.22,661.09,0.30253066]
[1748990426998,1.01533906,661.21,661.09,0.30253066]
[1748990427198,1.01495158,661.2,661.09,0.30253066]
[1748990427399,2.26348675,661.82,661.09,0.30253066]
[1748990427599,1.13120848,661.38,661.09,0.30253066]
[1748990427793,1.01488309,661.37,661.09,0.30253066]
[1748990427994,1.01488309,661.36,661.09,0.30253066]
[1748990428193,1.01488309,661.35,661.09,0.30253066]
[1748990428392,1.01488309,661.34,661.09,0.30253066]
[1748990428593,1.01488309,661.33,661.09,0.30253066]
[1748990428794,1.01488309,661.32,661.09,0.30253066]
[1748990428996,1.01488309,661.31,661.09,0.30253066]
[1748990429194,1.01488309,661.3,661.09,0.30253066]
[1748990429399,1.01488309,661.29,661.09,0.30253066]
[1748990429599,1.01488309,661.28,661.09,0.30253066]
[1748990429800,1.01488309,661.27,661.09,0.30253066]
[1748990429995,1.01488309,661.26,661.09,0.30253066]
[1748990430195,1.01488309,661.25,661.09,0.30253066]
[1748990430406,1.01488309,661.24,661.09,0.30253066]
[1748990430595,1.01488309,661.23,661.09,0.30253066]
[1748990430901,1.01488309,661.22,661.09,0.30253066]
[1748990431100,1.01488309,661.21,661.09,0.30253066]
[1748990431402,1.13120848,661.44,661.09,0.30253066]
[1748990431596,1.01448912,661.43,661.09,0.30253066]
[1748990431802,1.01448912,661.42,661.09,0.30253066]
[1748990432103,1.01448912,661.41,661.09,0.30253066]
[1748990432397,1.01448912,661.4,661.09,0.30253066]
[1748990432702,1.01448912,661.39,661.09,0.30253066]
[1748990432902,1.13120848,661.45,661.09,0.30253066]
[1748990432903,1.01448912,661.38,661.09,0.30253066]
[1748990433103,1.01448912,661.37,661.09,0.30253066]
[1748990433301,1.01448912,661.36,661.09,0.30253066]
[1748990433498,1.01448912,661.35,661.09,0.30253066]
[1748990433702,1.01448912,661.34,661.09,0.30253066]
[1748990433996,1.01448912,661.33,661.09,0.30253066]
[1748990434201,1.01448912,661.32,661.09,0.30253066]
[1748990434401,1.01448912,661.31,661.09,0.30253066]
[1748990434602,1.01448912,661.3,661.09,0.30253066]
[1748990434902,1.01448912,661.29,661.09,0.30253066]
[1748990435103,1.50827797,661.58,661.09,0.30253066]
[1748990435299,1.13021697,661.45,661.09,0.30253066]
[1748990435503,1.01125394,661.44,661.09,0.30253066]
[1748990435703,1.01125394,661.43,661.09,0.30253066]
[1748990435903,1.01125394,661.42,661.09,0.30253066]
[1748990436101,1.01125394,661.41,661.09,0.30253066]
[1748990436302,1.01125394,661.4,661.09,0.30253066]
[1748990436502,1.13021697,661.46,661.09,0.30253066]
[1748990436503,1.01125394,661.39,661.09,0.30253066]
[1748990436702,1.01125394,661.38,661.09,0.30253066]
[1748990436897,1.01125394,661.37,661.09,0.30253066]
[1748990437103,1.01125394,661.36,661.09,0.30253066]
[1748990437304,1.01125394,661.35,661.09,0.30253066]
[1748990437497,1.13021697,661.46,661.09,0.30253066]
[1748990437498,1.01125394,661.34,661.09,0.30253066]
[1748990437698,1.01125394,661.33,661.09,0.30253066]
[1748990437901,1.01125394,661.32,661.09,0.30253066]
[1748990438100,1.01125394,661.31,661.09,0.30253066]
[1748990438297,1.01125394,661.3,661.09,0.30253066]
[1748990438503,1.01125394,661.29,661.09,0.30253066]
[1748990438699,1.01125394,661.28,661.09,0.30253066]
[1748990438906,1.01125394,661.27,661.09,0.30253066]
[1748990439204,1.01101693,661.26,661.09,0.30253066]
[1748990439399,1.01101693,661.25,661.09,0.30253066]
[1748990439605,1.12972987,661.47,661.09,0.30253066]
[1748990439800,1.01093719,661.46,661.09,0.30253066]
[1748990440000,1.01093719,661.45,661.09,0.30253066]
[1748990440205,1.01093719,661.44,661.09,0.30253066]
[1748990440502,1.01093719,661.43,661.09,0.30253066]
[1748990440706,1.01093719,661.42,661.09,0.30253066]
[1748990440901,1.01093719,661.41,661.09,0.30253066]
[1748990441103,1.01093719,661.4,661.09,0.30253066]
[1748990441403,1.01093719,661.39,661.09,0.30253066]
[1748990441605,1.01093719,661.38,661.09,0.30253066]
[1748990441806,1.01093719,661.37,661.09,0.30253066]
[1748990442105,1.01093719,661.36,661.09,0.30253066]
[1748990442305,1.01093719,661.35,661.09,0.30253066]
[1748990442507,1.01093719,661.34,661.09,0.30253066]
[1748990442707,1.01093719,661.33,661.09,0.30253066]
[1748990443006,1.01076926,661.32,661.09,0.30253066]
[1748990443207,1.01076926,661.31,661.09,0.30253066]
[1748990443407,1.01076926,661.3,661.09,0.30253066]
[1748990443599,1.01076926,661.29,661.09,0.30253066]
[1748990443804,1.01076926,661.28,661.09,0.30253066]
[1748990444005,1.01076926,661.27,661.09,0.30253066]
[1748990444201,1.12943278,661.46,661.09,0.30253066]
[1748990444506,1.01072901,661.45,661.09,0.30253066]
[1748990444706,1.01072901,661.44,661.09,0.30253066]
[1748990445007,1.01072901,661.43,661.09,0.30253066]
[1748990445203,1.01072901,661.42,661.09,0.30253066]
[1748990445507,1.01072901,661.41,661.09,0.30253066]
[1748990445704,1.01072901,661.4,661.09,0.30253066]
[1748990445905,1.01072901,661.39,661.09,0.30253066]
[1748990446105,1.01072901,661.38,661.09,0.30253066]
[1748990446302,1.01072901,661.37,661.09,0.30253066]
[1748990446507,1.01072901,661.36,661.09,0.30253066]
[1748990446701,1.01072901,661.35,661.09,0.30253066]
[1748990446905,1.01072901,661.34,661.09,0.30253066]